Workbook

Sheet Projected Cash Flows
B1: INSTRUCTIONS: Do Not fill in any information. Leave this tab blank
B3: FIVE YEAR PROFORMA AND INTERNAL RATE OF RETURN
B5: Description | C5: ='Annualized Revenue Operating'!D5 -> Current Income | D5: Year 1 | E5: Year 2 | F5: Year 3 | G5: Year 4 | H5: Year 5
B6: Blended $/SF Rental Rates | C6: =(C8/(Assumptions!$C$6+Assumptions!$C$7+Assumptions!$C$8))/12 -> 0.7528360445 | D6: =(D8/(Assumptions!$C$6+Assumptions!$C$7+Assumptions!$C$8))/12 -> 0.7754211259 | E6: =(E8/(Assumptions!$C$6+Assumptions!$C$7+Assumptions!$C$8))/12 -> 0.7986837596 | F6: =(F8/(Assumptions!$C$6+Assumptions!$C$7+Assumptions!$C$8))/12 -> 0.8226442724 | G6: =(G8/(Assumptions!$C$6+Assumptions!$C$7+Assumptions!$C$8))/12 -> 0.8473236006 | H6: =(H8/(Assumptions!$C$6+Assumptions!$C$7+Assumptions!$C$8))/12 -> 0.8727433086 | J6: YoY % Growth | P6: Achieved Rate Growth Analysis
B7: Achieved $/SF Rental Rates | C7: =Assumptions!I7 -> 0.6967720781 | D7: =P9 -> 0.7552803174 | E7: =Q9 -> 0.7803232134 | F7: =R9 -> 0.8226442724 | G7: =S9 -> 0.8473236006 | H7: =T9 -> 0.8727433086
B8: =+'Annualized Revenue Operating'!B7 -> Potential Gross Rental Income | C8: ='Annualized Revenue Operating'!D7 -> 84414 | D8: =+C8*(1+Assumptions!$C$9) -> 86946.42 | E8: =+D8*(1+Assumptions!$C$9) -> 89554.8126 | F8: =+E8*(1+Assumptions!$C$10) -> 92241.45698 | G8: =+F8*(1+Assumptions!$C$10) -> 95008.70069 | H8: =+G8*(1+Assumptions!$C$10) -> 97858.96171 | J8: =(D8-C8)/C8 -> 0.03 | K8: =(E8-D8)/D8 -> 0.03 | L8: =(F8-E8)/E8 -> 0.03 | M8: =(G8-F8)/F8 -> 0.03 | N8: =(H8-G8)/G8 -> 0.03 | P8: =D10/(Assumptions!$C$6*'Annualized Revenue Operating'!P25) -> 9.063363809 | Q8: =E10/(Assumptions!$C$6*'Annualized Revenue Operating'!P26) -> 9.363878561 | R8: =F10/(Assumptions!$C$6*'Annualized Revenue Operating'!P27) -> 9.871731269 | S8: =G10/(Assumptions!$C$6*'Annualized Revenue Operating'!P28) -> 10.16788321 | T8: =H10/(Assumptions!$C$6*'Annualized Revenue Operating'!P29) -> 10.4729197
B9: =+'Annualized Revenue Operating'!B8 -> Vacancy, Discounts & Credit Loss | C9: ='Annualized Revenue Operating'!D8 -> -29334 | D9: =+D10-D8 -> -21736.605 | E9: =+E10-E8 -> -13433.22189 | F9: =+F10-F8 -> -9224.145698 | G9: =+G10-G8 -> -9500.870069 | H9: =+H10-H8 -> -9785.896171 | P9: =P8/12 -> 0.7552803174 | Q9: =Q8/12 -> 0.7803232134 | R9: =R8/12 -> 0.8226442724 | S9: =S8/12 -> 0.8473236006 | T9: =T8/12 -> 0.8727433086
B10: =+'Annualized Revenue Operating'!B9 -> Gross Rental Income | C10: =+'Annualized Revenue Operating'!D9 -> 55080 | D10: =+D8*Assumptions!$C$12 -> 65209.815 | E10: =+E8*Assumptions!$C$13 -> 76121.59071 | F10: =+F8*Assumptions!$C$14 -> 83017.31128 | G10: =+G8*Assumptions!$C$15 -> 85507.83062 | H10: =+H8*Assumptions!$C$16 -> 88073.06554 | J10: =(D10-C10)/C10 -> 0.1839109477 | K10: =(E10-D10)/D10 -> 0.1673333333 | L10: =(F10-E10)/E10 -> 0.09058823529 | M10: =(G10-F10)/F10 -> 0.03 | N10: =(H10-G10)/G10 -> 0.03
B11: =+'Annualized Revenue Operating'!B10 -> Late/Admin/Other Fee Income | C11: =+'Annualized Revenue Operating'!D10 -> 0 | D11: =+C11*(1+Assumptions!$C$10) -> 0 | E11: =+D11*(1+Assumptions!$C$10) -> 0 | F11: =+E11*(1+Assumptions!$C$10) -> 0 | G11: =+F11*(1+Assumptions!$C$10) -> 0 | H11: =+G11*(1+Assumptions!$C$10) -> 0
B12: =+'Annualized Revenue Operating'!B11 -> Retail Product Sales (locks, boxes, etc.) | C12: =+'Annualized Revenue Operating'!D11 -> 0 | D12: =+C12*(1+Assumptions!$C$10) -> 0 | E12: =+D12*(1+Assumptions!$C$10) -> 0 | F12: =+E12*(1+Assumptions!$C$10) -> 0 | G12: =+F12*(1+Assumptions!$C$10) -> 0 | H12: =+G12*(1+Assumptions!$C$10) -> 0
B13: =+'Annualized Revenue Operating'!B12 -> Tenant Insurance | C13: =+'Annualized Revenue Operating'!D12 -> 0 | D13: =((('Annualized Revenue Operating'!N25*'Annualized Revenue Operating'!N33)*'Annualized Revenue Operating'!N32)*'Annualized Revenue Operating'!N31)*12 -> 684.684 | E13: =((('Annualized Revenue Operating'!N26*'Annualized Revenue Operating'!N34)*'Annualized Revenue Operating'!N32)*'Annualized Revenue Operating'!N31)*12 -> 1160.406 | F13: =((('Annualized Revenue Operating'!N27*'Annualized Revenue Operating'!N35)*'Annualized Revenue Operating'!N32)*'Annualized Revenue Operating'!N31)*12 -> 1600.56 | G13: =((('Annualized Revenue Operating'!N28*'Annualized Revenue Operating'!N36)*'Annualized Revenue Operating'!N32)*'Annualized Revenue Operating'!N31)*12 -> 2000.7 | H13: =+G13*(1+Assumptions!$C$10) -> 2060.721
B14: =+'Annualized Revenue Operating'!B13 -> Other Revenue | C14: =+'Annualized Revenue Operating'!D13 -> 0 | D14: =+C14*(1+Assumptions!$C$10) -> 0 | E14: =+D14*(1+Assumptions!$C$10) -> 0 | F14: =+E14*(1+Assumptions!$C$10) -> 0 | G14: =+F14*(1+Assumptions!$C$10) -> 0 | H14: =+G14*(1+Assumptions!$C$10) -> 0
B15: =+'Annualized Revenue Operating'!B14 -> Effective Gross Revenue | C15: =SUM(C10:C14) -> 55080 | D15: 65894.499 | E15: 77281.99671 | F15: 84617.87128 | G15: 87508.53062 | H15: 90133.78654 | J15: =(D15-C15)/C15 -> 0.1963416667 | K15: =(E15-D15)/D15 -> 0.1728140874 | L15: =(F15-E15)/E15 -> 0.09492346061 | M15: =(G15-F15)/F15 -> 0.03416133371 | N15: =(H15-G15)/G15 -> 0.03
C17: ='Annualized Revenue Operating'!D16 -> Owner Expenses Adjusted
B18: Operating Expenses
B19: =+'Annualized Revenue Operating'!B18 -> Marketing & Advertising | C19: =+'Annualized Revenue Operating'!D18 -> 1250 | D19: =+C19*(1+Assumptions!$C$19) -> 1275 | E19: =+D19*(1+Assumptions!$C$19) -> 1300.5 | F19: =+E19*(1+Assumptions!$C$19) -> 1326.51 | G19: =+F19*(1+Assumptions!$C$19) -> 1353.0402 | H19: =+G19*(1+Assumptions!$C$19) -> 1380.101004
B20: =+'Annualized Revenue Operating'!B19 -> Retail Product Costs | C20: =+'Annualized Revenue Operating'!D19 -> 0 | D20: =D12*0.5 -> 0 | E20: =E12*0.5 -> 0 | F20: =F12*0.5 -> 0 | G20: =G12*0.5 -> 0 | H20: =H12*0.5 -> 0
B21: =+'Annualized Revenue Operating'!B20 -> Bank & Credit Card Charges | C21: =+'Annualized Revenue Operating'!D20 -> 660.96 | D21: =D15*'Annualized Revenue Operating'!$N$15*'Annualized Revenue Operating'!$N$21 -> 790.733988 | E21: =E15*'Annualized Revenue Operating'!$N$15*'Annualized Revenue Operating'!$N$21 -> 927.3839605 | F21: =F15*'Annualized Revenue Operating'!$N$15*'Annualized Revenue Operating'!$N$21 -> 1015.414455 | G21: =G15*'Annualized Revenue Operating'!$N$15*'Annualized Revenue Operating'!$N$21 -> 1050.102367 | H21: =H15*'Annualized Revenue Operating'!$N$15*'Annualized Revenue Operating'!$N$21 -> 1081.605438
B22: =+'Annualized Revenue Operating'!B21 -> Insurance | C22: =+'Annualized Revenue Operating'!D21 -> 1897 | D22: =+C22*(1+Assumptions!$C$19) -> 1934.94 | E22: =+D22*(1+Assumptions!$C$19) -> 1973.6388 | F22: =+E22*(1+Assumptions!$C$19) -> 2013.111576 | G22: =+F22*(1+Assumptions!$C$19) -> 2053.373808 | H22: =+G22*(1+Assumptions!$C$19) -> 2094.441284
B23: =+'Annualized Revenue Operating'!B22 -> Dues/Subscriptions & Licenses/Permits | C23: =+'Annualized Revenue Operating'!D22 -> 0 | D23: =+C23*(1+Assumptions!$C$19) -> 0 | E23: =+D23*(1+Assumptions!$C$19) -> 0 | F23: =+E23*(1+Assumptions!$C$19) -> 0 | G23: =+F23*(1+Assumptions!$C$19) -> 0 | H23: =+G23*(1+Assumptions!$C$19) -> 0
B24: =+'Annualized Revenue Operating'!B23 -> Off-Site Management Fees | C24: =+'Annualized Revenue Operating'!D23 -> 0 | D24: =IF(C24=0, 0, IF(D15 * Assumptions!$C$20 > 24000, D15 * Assumptions!$C$20, 24000)) -> 0 | E24: =IF(D24=0, 0, IF(E15 * Assumptions!$C$20 > 24000, E15 * Assumptions!$C$20, 24000)) -> 0 | F24: =IF(E24=0, 0, IF(F15 * Assumptions!$C$20 > 24000, F15 * Assumptions!$C$20, 24000)) -> 0 | G24: =IF(F24=0, 0, IF(G15 * Assumptions!$C$20 > 24000, G15 * Assumptions!$C$20, 24000)) -> 0 | H24: =IF(G24=0, 0, IF(H15 * Assumptions!$C$20 > 24000, H15 * Assumptions!$C$20, 24000)) -> 0
B25: =+'Annualized Revenue Operating'!B24 -> Office/Site Supplies | C25: =+'Annualized Revenue Operating'!D24 -> 468 | D25: =+C25*(1+Assumptions!$C$19) -> 477.36 | E25: =+D25*(1+Assumptions!$C$19) -> 486.9072 | F25: =+E25*(1+Assumptions!$C$19) -> 496.645344 | G25: =+F25*(1+Assumptions!$C$19) -> 506.5782509 | H25: =+G25*(1+Assumptions!$C$19) -> 516.7098159
B26: =+'Annualized Revenue Operating'!B25 -> Postage & Handling | C26: =+'Annualized Revenue Operating'!D25 -> 250 | D26: =+C26*(1+Assumptions!$C$19) -> 255 | E26: =+D26*(1+Assumptions!$C$19) -> 260.1 | F26: =+E26*(1+Assumptions!$C$19) -> 265.302 | G26: =+F26*(1+Assumptions!$C$19) -> 270.60804 | H26: =+G26*(1+Assumptions!$C$19) -> 276.0202008
B27: =+'Annualized Revenue Operating'!B26 -> On-Site Management & Payroll | C27: =+'Annualized Revenue Operating'!D26 -> 2500 | D27: =+C27*(1+Assumptions!$C$19) -> 2550 | E27: =+D27*(1+Assumptions!$C$19) -> 2601 | F27: =+E27*(1+Assumptions!$C$19) -> 2653.02 | G27: =+F27*(1+Assumptions!$C$19) -> 2706.0804 | H27: =+G27*(1+Assumptions!$C$19) -> 2760.202008
B28: =+'Annualized Revenue Operating'!B27 -> Repairs & Maintenance | C28: =+'Annualized Revenue Operating'!D27 -> 2080 | D28: =+C28*(1+Assumptions!$C$19) -> 2121.6 | E28: =+D28*(1+Assumptions!$C$19) -> 2164.032 | F28: =+E28*(1+Assumptions!$C$19) -> 2207.31264 | G28: =+F28*(1+Assumptions!$C$19) -> 2251.458893 | H28: =+G28*(1+Assumptions!$C$19) -> 2296.488071
B29: =+'Annualized Revenue Operating'!B28 -> Real Estate Taxes | C29: =+'Annualized Revenue Operating'!D28 -> 4179 | D29: =+C29*(1+Assumptions!$C$19) -> 4262.58 | E29: =D29*150% -> 6393.87 | F29: =+E29*(1+Assumptions!$C$19) -> 6521.7474 | G29: =+F29*(1+Assumptions!$C$19) -> 6652.182348 | H29: =+G29*(1+Assumptions!$C$19) -> 6785.225995
B30: =+'Annualized Revenue Operating'!B29 -> Telephone & Internet | C30: =+'Annualized Revenue Operating'!D29 -> 863 | D30: =+C30*(1+Assumptions!$C$19) -> 880.26 | E30: =+D30*(1+Assumptions!$C$19) -> 897.8652 | F30: =+E30*(1+Assumptions!$C$19) -> 915.822504 | G30: =+F30*(1+Assumptions!$C$19) -> 934.1389541 | H30: =+G30*(1+Assumptions!$C$19) -> 952.8217332
B31: =+'Annualized Revenue Operating'!B30 -> Utilities | C31: =+'Annualized Revenue Operating'!D30 -> 2607 | D31: =+C31*(1+Assumptions!$C$19) -> 2659.14 | E31: =+D31*(1+Assumptions!$C$19) -> 2712.3228 | F31: =+E31*(1+Assumptions!$C$19) -> 2766.569256 | G31: =+F31*(1+Assumptions!$C$19) -> 2821.900641 | H31: =+G31*(1+Assumptions!$C$19) -> 2878.338654
B32: =+'Annualized Revenue Operating'!B31 -> Other Expenses-
B33: =+'Annualized Revenue Operating'!B32 -> Landscaping/Snow Removal | C33: =+'Annualized Revenue Operating'!D32 -> 580 | D33: =+C33*(1+Assumptions!$C$19) -> 591.6 | E33: =+D33*(1+Assumptions!$C$19) -> 603.432 | F33: =+E33*(1+Assumptions!$C$19) -> 615.50064 | G33: =+F33*(1+Assumptions!$C$19) -> 627.8106528 | H33: =+G33*(1+Assumptions!$C$19) -> 640.3668659
B34: =+'Annualized Revenue Operating'!B33 -> Software | C34: =+'Annualized Revenue Operating'!D33 -> 1250 | D34: =+C34*(1+Assumptions!$C$19) -> 1275 | E34: =+D34*(1+Assumptions!$C$19) -> 1300.5 | F34: =+E34*(1+Assumptions!$C$19) -> 1326.51 | G34: =+F34*(1+Assumptions!$C$19) -> 1353.0402 | H34: =+G34*(1+Assumptions!$C$19) -> 1380.101004
B35: =+'Annualized Revenue Operating'!B34 -> Trash Removal | C35: =+'Annualized Revenue Operating'!D34 -> 0 | D35: =+C35*(1+Assumptions!$C$19) -> 0 | E35: =+D35*(1+Assumptions!$C$19) -> 0 | F35: =+E35*(1+Assumptions!$C$19) -> 0 | G35: =+F35*(1+Assumptions!$C$19) -> 0 | H35: =+G35*(1+Assumptions!$C$19) -> 0
B36: =+'Annualized Revenue Operating'!B35 -> Outside Services - Fire, Pest, Security, etc. | C36: =+'Annualized Revenue Operating'!D35 -> 109 | D36: =+C36*(1+Assumptions!$C$19) -> 111.18 | E36: =+D36*(1+Assumptions!$C$19) -> 113.4036 | F36: =+E36*(1+Assumptions!$C$19) -> 115.671672 | G36: =+F36*(1+Assumptions!$C$19) -> 117.9851054 | H36: =+G36*(1+Assumptions!$C$19) -> 120.3448075
B37: =+'Annualized Revenue Operating'!B36 -> 0 | C37: =+'Annualized Revenue Operating'!D36 -> 0 | D37: =+C37*(1+Assumptions!$C$19) -> 0 | E37: =+D37*(1+Assumptions!$C$19) -> 0 | F37: =+E37*(1+Assumptions!$C$19) -> 0 | G37: =+F37*(1+Assumptions!$C$19) -> 0 | H37: =+G37*(1+Assumptions!$C$19) -> 0
B41: =+'Annualized Revenue Operating'!B41 -> Total Operating Expenses | C41: =SUM(C19:C40) -> 18693.96 | D41: 19184.39399 | E41: 21734.95556 | F41: 22239.13749 | G41: 22698.29986 | H41: 23162.76688
B42: Expense Ratio | C42: =C41/C15 -> 0.3393965142 | D42: 0.2911380203 | E42: 0.2812421584 | F42: 0.2628184466 | G42: 0.2593838532 | H42: 0.2569820682 | J42: =(D41-C41)/C41 -> 0.0262348902 | K42: =(E41-D41)/D41 -> 0.1329498119 | L42: =(F41-E41)/E41 -> 0.02319682345 | M42: =(G41-F41)/F41 -> 0.02064659086 | N42: =(H41-G41)/G41 -> 0.02046263481
B43: =+'Annualized Revenue Operating'!B43 -> Capital Reserves | C43: =+'Annualized Revenue Operating'!C43 -> 0 | D43: =+Assumptions!C6*Assumptions!C21 -> 934.4 | E43: =+D43*(1+Assumptions!$C$19) -> 953.088 | F43: =+E43*(1+Assumptions!$C$19) -> 972.14976 | G43: =+F43*(1+Assumptions!$C$19) -> 991.5927552 | H43: =+G43*(1+Assumptions!$C$19) -> 1011.42461
B44: =+'Annualized Revenue Operating'!B44 -> Net Operating Cash Flow | C44: =+C15-C41-C43 -> 36386.04 | D44: 45775.70501 | E44: 54593.95315 | F44: 61406.58403 | G44: 63818.638 | H44: 65959.59505
J45: =(D44-C44)/C44 -> 0.258056799 | K45: =(E44-D44)/D44 -> 0.1926403566 | L45: =(F44-E44)/E44 -> 0.1247872794 | M45: =(G44-F44)/F44 -> 0.03928005455 | N45: =(H44-G44)/G44 -> 0.03354752012
B47: Unleveraged Financial Summary | D47: Year 1 | E47: Year 2 | F47: Year 3 | G47: Year 4 | H47: Year 5
B49: Net Operating Cash Flow | D49: =+D44 -> 45775.70501 | E49: =+E44 -> 54593.95315 | F49: =+F44 -> 61406.58403 | G49: =+G44 -> 63818.638 | H49: =+H44 -> 65959.59505
B50: Acquisition | C50: =-Assumptions!F24 -> -750421.3936
B51: Residual Value Year 5 | H51: =+H49/Assumptions!C25 -> 942279.9292
B53: Total Cash Flow Before Taxes | C53: =SUM(C49:C52) -> -750421.3936 | D53: =SUM(D47:D52) -> 45775.70501 | E53: =SUM(E47:E52) -> 54593.95315 | F53: =SUM(F47:F52) -> 61406.58403 | G53: =SUM(G47:G52) -> 63818.638 | H53: =SUM(H47:H52) -> 1008239.524
B55: Return on Investment | D55: =+D53/-$C53 -> 0.061 | E55: =+E53/-$C53 -> 0.07275106175 | F55: =+F53/-$C53 -> 0.08182946882 | G55: =+G53/-$C53 -> 0.08504373482 | H55: =(+H53+C53)/-$C53 -> 0.343564473
B57: Unleveraged IRR | F57: Unleveraged IRR | H57: =+IRR(C53:H53) -> 0.116730767
B59: Leveraged Financial Summary | D59: Year 1 | E59: Year 2 | F59: Year 3 | G59: Year 4 | H59: Year 5
B61: Net Operating Cash Flow | D61: =+D49 -> 45775.70501 | E61: =+E49 -> 54593.95315 | F61: =+F49 -> 61406.58403 | G61: =+G49 -> 63818.638 | H61: =+H49 -> 65959.59505
B62: Acquisition | C62: =-Assumptions!F24 -> -750421.3936
B63: Loan Principal | C63: =+Assumptions!F26 -> 450252.8362
B64: Loan Origination Fees and Costs | C64: =-Assumptions!F27 -> -9005.056724
B65: Debt Service (Principal and Interest) | D65: =-IF(Assumptions!I30<1.9,Assumptions!E35*1,IF(Assumptions!I30>1.9,Assumptions!C35*1)) -> -22512.64181 | E65: =-Assumptions!C35 -> -31454.53833 | F65: =E65 -> -31454.53833 | G65: =F65 -> -31454.53833 | H65: =G65 -> -31454.53833
B66: Residual Value Year 5 | H66: =+H61/Assumptions!C25 -> 942279.9292
B67: Residual Remaining Loan Value | H67: =-Assumptions!C37 -> -408467.4071
B69: Total Cash Flow Before Taxes | C69: =SUM(C59:C68) -> -309173.6142 | D69: 23263.0632 | E69: 23139.41482 | F69: 29952.04571 | G69: 32364.09968 | H69: 568317.5789
B71: Return on Investment | D71: =+D69/-$C69 -> 0.07524271845 | E71: =+E69/-$C69 -> 0.07484278658 | F71: =+F69/-$C69 -> 0.09687775519 | G71: =+G69/-$C69 -> 0.1046793717 | H71: =(+H69+C69)/-$C69 -> 0.8381826676
B73: Leveraged IRR | F73: Leveraged IRR | H73: =+IRR(C69:H69) -> 0.1889372506
B75: DSCR | D75: =-D44/D65 -> 2.033333333 | E75: =-E44/E65 -> 1.735646303 | F75: =-F44/F65 -> 1.952232883 | G75: =-G44/G65 -> 2.028916697 | H75: =-H44/H65 -> 2.096981821
B76: Debt Yield | D76: =D44/$C$63 -> 0.1016666667 | E76: =E44/$C$63 -> 0.1212517696 | F76: 0.136382448 | G76: 0.141739558 | H76: 0.1464945687

Sheet Annualized Revenue Operating
B1: INSTRUCTIONS: FILL IN Items highlighted in YELLOW
B3: ANNUALIZED REVENUE AND OPERATING EXPENSES
B5: Description | C5: Current Income | D5: Current Income
B6: Revenue
B7: Potential Gross Rental Income | C7: =Assumptions!C17+Assumptions!C18 -> 84414 | D7: =C7 -> 84414
B8: Vacancy, Discounts & Credit Loss | C8: =-(C7-C9) -> -29334 | D8: =-(D7-D9) -> -29334
B9: Gross Rental Income | C9: =SUM('Rent Roll'!G12:G68)*12 -> 55080 | D9: =C9 -> 55080
B10: Late/Admin/Other Fee Income | C10: 0 | D10: =C10 -> 0
B11: Retail Product Sales (locks, boxes, etc.) | C11: 0 | D11: =C11 -> 0
B12: Tenant Insurance | C12: 0 | D12: =C12 -> 0
B13: Other Revenue | C13: 0 | D13: =C13 -> 0
B14: Effective Gross Revenue | C14: =SUM(C9:C13) -> 55080 | D14: =SUM(D9:D13) -> 55080
N15: =N19/N20 -> 0.6
C16: Owner Expenses | D16: Owner Expenses Adjusted
B17: Operating Expenses | F17: Expenses Excluded: | L17: Additional Inputs
B18: Marketing & Advertising | C18: 0 | D18: 1250 | L18: Credit Card
B19: Retail Product Costs | C19: 0 | D19: 0 | L19: Revenue from Credit Card | N19: 60
B20: Bank & Credit Card Charges | C20: =164 -> 164 | D20: =D14*N15*N21 -> 660.96 | L20: Gross Revenue | N20: 100
B21: Insurance | C21: =1897 -> 1897 | D21: 1897 | L21: Credit Card Fee | N21: 0.02
B22: Dues/Subscriptions & Licenses/Permits | C22: 0 | D22: 0
B23: Off-Site Management Fees | C23: 0 | D23: 0 | L23: Insurance - If Not Present
B24: Office/Site Supplies | C24: =468 -> 468 | D24: 468 | L24: Current Occupied Units | N24: =N30-SUM('Rent Roll'!B5:B8) -> 38
B25: Postage & Handling | C25: 0 | D25: 250 | L25: Year 1 Occupied Units | N25: =$N$30*P25 -> 43.89 | P25: 0.77
B26: On-Site Management & Payroll | C26: 0 | D26: 2500 | L26: Year 2 Occupied Units | N26: =$N$30*P26 -> 49.59 | P26: 0.87
B27: Repairs & Maintenance | C27: =2080 -> 2080 | D27: 2080 | L27: Year 3 Occupied Units | N27: 51.3 | P27: 0.9
B28: Real Estate Taxes | C28: =4179 -> 4179 | D28: 4179 | L28: Year 4 Occupied Units | N28: 51.3 | P28: 0.9
B29: Telephone & Internet | C29: =719+144 -> 863 | D29: 863 | L29: Year 5 Occupied Units | N29: 51.3 | P29: 0.9
B30: Utilities | C30: =516+2091 -> 2607 | D30: 2607 | F30: Total | J30: =SUM(J18:J28) -> 0 | L30: Total Units | N30: =Assumptions!P10 -> 57
B31: Other Expenses- | L31: Percentage Paid to Owner | N31: 0.5
B32: Landscaping/Snow Removal | C32: 0 | D32: 580 | J32: =J30+C41 -> 14541 | L32: Tenant Insurance Policy $ | N32: 13
B33: Software | C33: 2174 | D33: 1250 | L33: Year 1 | N33: 0.2
B34: Trash Removal | C34: 0 | D34: 0 | L34: Year 2 | N34: 0.3
B35: Outside Services - Fire, Pest, Security, etc. | C35: =109 -> 109 | D35: 109 | L35: Year 3 | N35: 0.4
L36: Year 4 & 5 | N36: 0.5
B41: Total Operating Expenses | C41: =SUM(C18:C39) -> 14541 | D41: =SUM(D18:D40) -> 18693.96
B42: Expense Ratio | C42: =C41/C14 -> 0.2639978214 | D42: =D41/D14 -> 0.3393965142
B43: Capital Reserves | C43: 0 | D43: 0
B44: Net Operating Cash Flow | C44: =C14-C41-C43 -> 40539 | D44: =D14-D41-D43 -> 36386.04

Sheet Assumptions
B1: INSTRUCTIONS: FILL IN Items highlighted in YELLOW
B3: ASSUMPTIONS | H3: Achieved Rate Analysis | L3: Unit Type | M3: W | N3: L | O3: SF | P3: # | Q3: RSF | R3: $ | S3: M | T3: A
L4: ='Unit Mix'!A3 -> Storage | M4: ='Unit Mix'!B3 -> 5 | N4: ='Unit Mix'!C3 -> 6 | O4: ='Unit Mix'!D3 -> 30 | P4: ='Unit Mix'!E3 -> 2 | Q4: ='Unit Mix'!F3 -> 60 | R4: ='Unit Mix'!G3 -> 0 | S4: ='Unit Mix'!H3 -> 0 | T4: ='Unit Mix'!I3 -> 0
B5: Operating Assumptions | E5: Key Metrics | H5: Occupied SF | I5: =(C6+C7+C8)*F7 -> 6587.52 | L5: ='Unit Mix'!A4 -> Storage | M5: ='Unit Mix'!B4 -> 4 | N5: ='Unit Mix'!C4 -> 6 | O5: ='Unit Mix'!D4 -> 24 | P5: ='Unit Mix'!E4 -> 6 | Q5: ='Unit Mix'!F4 -> 144 | R5: ='Unit Mix'!G4 -> 0 | S5: ='Unit Mix'!H4 -> 0 | T5: ='Unit Mix'!I4 -> 0
B6: Storage Square Footage | C6: =Q10 -> 9344 | E6: Current Unit Occupancy | F6: ='Annualized Revenue Operating'!N24/'Annualized Revenue Operating'!N30 -> 0.6666666667 | H6: Achieved Rate Annual | I6: ='Annualized Revenue Operating'!D9/Assumptions!I5 -> 8.361264937 | L6: ='Unit Mix'!A5 -> Storage | M6: ='Unit Mix'!B5 -> 10 | N6: ='Unit Mix'!C5 -> 14 | O6: ='Unit Mix'!D5 -> 140 | P6: ='Unit Mix'!E5 -> 11 | Q6: ='Unit Mix'!F5 -> 1540 | R6: ='Unit Mix'!G5 -> 0 | S6: ='Unit Mix'!H5 -> 0 | T6: ='Unit Mix'!I5 -> 0
B7: RV/Boat/Parking Square Footage | C7: 0 | E7: Current SF Occupancy | F7: 0.705 | H7: Achieved Rate Monthly | I7: =I6/12 -> 0.6967720781 | L7: ='Unit Mix'!A6 -> Storage | M7: ='Unit Mix'!B6 -> 10 | N7: ='Unit Mix'!C6 -> 20 | O7: ='Unit Mix'!D6 -> 200 | P7: ='Unit Mix'!E6 -> 38 | Q7: ='Unit Mix'!F6 -> 7600 | R7: ='Unit Mix'!G6 -> 0 | S7: ='Unit Mix'!H6 -> 0 | T7: ='Unit Mix'!I6 -> 0
B8: Warehouse/Office Square Footage | C8: 0 | E8: Current Economic Occupancy | F8: ='Annualized Revenue Operating'!D9/'Annualized Revenue Operating'!D7 -> 0.6524984007
B9: Year 1-2 Annual Rate Increases | C9: 0.03 | L9: ='Unit Mix'!A8 -> Office Total | P9: ='Unit Mix'!E8 -> 57 | Q9: ='Unit Mix'!F8 -> 9344 | R9: ='Unit Mix'!G8 -> 0 | S9: ='Unit Mix'!H8 -> 0 | T9: ='Unit Mix'!I8 -> 0
B10: Year 3-5 Annual Rate Increases | C10: 0.03 | E10: Storage $/SF Rates | F10: =(C17/C6)/12 -> 0.7528360445 | L10: ='Unit Mix'!A9 -> Grand Total | P10: ='Unit Mix'!E9 -> 57 | Q10: ='Unit Mix'!F9 -> 9344 | R10: ='Unit Mix'!G9 -> 0 | S10: ='Unit Mix'!H9 -> 0 | T10: ='Unit Mix'!I9 -> 0
B11: Average Economic Occupancy Percentage | E11: Rv/Boat/Parking $/SF Rates | F11: =IFERROR((C18/C7)/12, "-") -> - | R11: ='Unit Mix'!G10 -> 0 | S11: ='Unit Mix'!H10 -> 0 | T11: ='Unit Mix'!I10 -> 0
B12: -Year 1 | C12: 0.75 | R12: ='Unit Mix'!G11 -> 0 | S12: ='Unit Mix'!H11 -> 0 | T12: ='Unit Mix'!I11 -> 0
B13: -Year 2 | C13: 0.85 | E13: Acquisition $/SF | F13: =F24/(C6+C8) -> 80.31050874 | R13: ='Unit Mix'!G12 -> 0 | S13: ='Unit Mix'!H12 -> 0 | T13: ='Unit Mix'!I12 -> 0
B14: -Year 3 | C14: 0.9 | E14: Future Sale $/SF | F14: =F25/(C6+C8) -> 100.8433143 | R14: ='Unit Mix'!G13 -> 0 | S14: ='Unit Mix'!H13 -> 0 | T14: ='Unit Mix'!I13 -> 0
B15: -Year 4 | C15: 0.9 | R15: ='Unit Mix'!G14 -> 0 | S15: ='Unit Mix'!H14 -> 0 | T15: ='Unit Mix'!I14 -> 0
B16: -Year 5 | C16: 0.9 | E16: Average Storage Unit Size | F16: =Q9/P9 -> 163.9298246 | R16: ='Unit Mix'!G15 -> 0 | S16: ='Unit Mix'!H15 -> 0 | T16: ='Unit Mix'!I15 -> 0
B17: Trailing Storage Potential Gross Rental Income | C17: =SUM('Rent Roll'!E12:E68)*12 -> 84414 | R17: ='Unit Mix'!G16 -> 0 | S17: ='Unit Mix'!H16 -> 0 | T17: ='Unit Mix'!I16 -> 0
B18: Trailing Rv/Boat/Parking Potential Gross Rental Income | C18: 0 | R18: ='Unit Mix'!G17 -> 0 | S18: ='Unit Mix'!H17 -> 0 | T18: ='Unit Mix'!I17 -> 0
B19: Operating Expense Inflationary Increases | C19: 0.02 | R19: ='Unit Mix'!G18 -> 0 | S19: ='Unit Mix'!H18 -> 0 | T19: ='Unit Mix'!I18 -> 0
B20: Management Fees as Percentage Total Revenue | C20: 0 | R20: ='Unit Mix'!G19 -> 0 | S20: ='Unit Mix'!H19 -> 0 | T20: ='Unit Mix'!I19 -> 0
B21: Capital Reserves Per Square Foot | C21: 0.1 | R21: ='Unit Mix'!G20 -> 0 | S21: ='Unit Mix'!H20 -> 0 | T21: ='Unit Mix'!I20 -> 0
R22: ='Unit Mix'!#REF! ->  | S22: ='Unit Mix'!#REF! ->  | T22: ='Unit Mix'!#REF! -> 
B23: Acquisition & Disposition Assumptions | E23: Key Metrics | R23: ='Unit Mix'!#REF! ->  | S23: ='Unit Mix'!#REF! ->  | T23: ='Unit Mix'!#REF! -> 
B24: Year 1 Acquisition Cap Rate | C24: 0.061 | E24: Current Property Value | F24: ='Projected Cash Flows'!D44/Assumptions!C24 -> 750421.3936 | R24: ='Unit Mix'!#REF! ->  | S24: ='Unit Mix'!#REF! ->  | T24: ='Unit Mix'!#REF! -> 
B25: Future Sale Cap Rate | C25: 0.07 | E25: Projected Future Property Value | F25: =+'Projected Cash Flows'!H44/Assumptions!C25 -> 942279.9292 | R25: ='Unit Mix'!#REF! ->  | S25: ='Unit Mix'!#REF! ->  | T25: ='Unit Mix'!#REF! -> 
B26: Loan to Value | C26: 0.6 | E26: Loan Amount | F26: =+F24*C26 -> 450252.8362 | R26: ='Unit Mix'!#REF! ->  | S26: ='Unit Mix'!#REF! ->  | T26: ='Unit Mix'!#REF! -> 
B27: Loan Origination Fees | C27: 0.02 | E27: Loan Origination | F27: =+F26*C27 -> 9005.056724 | R27: ='Unit Mix'!#REF! ->  | S27: ='Unit Mix'!#REF! ->  | T27: ='Unit Mix'!#REF! -> 
R28: ='Unit Mix'!#REF! ->  | S28: ='Unit Mix'!#REF! ->  | T28: ='Unit Mix'!#REF! -> 
B29: Financing Assumptions | R29: ='Unit Mix'!#REF! ->  | S29: ='Unit Mix'!#REF! ->  | T29: ='Unit Mix'!#REF! -> 
B30: Interest Rate | C30: 0.05 | D30: One Year I/O | H30: Inputs | I30: 1 | R30: ='Unit Mix'!#REF! ->  | S30: ='Unit Mix'!#REF! ->  | T30: ='Unit Mix'!#REF! -> 
B31: Number Monthly Payments | C31: 300 | E31: 300 | H31: One Year I/0 = 1 | R31: ='Unit Mix'!#REF! ->  | S31: ='Unit Mix'!#REF! ->  | T31: ='Unit Mix'!#REF! -> 
B32: Loan Amount | C32: =F26 -> 450252.8362 | E32: =F26 -> 450252.8362 | H32: Fully Am = 2
B33: Future Value After Last Payment Made | C33: 0 | E33: 0
B34: When Payments Due (Assumes 1st Month) | C34: 1 | E34: 1
B35: Annual Loan Payments (PMT) | C35: =-PMT(C30/12,C31,C32,C33,C34)*12 -> 31454.53833 | E35: =E32*C30 -> 22512.64181
B36: Number Payments Made | C36: =IF(I30>1.9,60,IF(I30<1.9,48)) -> 48 | E36: 60
B37: Remaining Unpaid Loan Balance (CUMPRINC) | C37: =+C32+CUMPRINC(C30/12,C31,C32,1,C36,C34) -> 408467.4071 | E37: =E32 -> 450252.8362

Sheet Unit Mix
A2: Unit Type | B2: W | C2: L | D2: Unit SF | E2: # of Units | F2: Total RSF | G2: Rental Rate | H2: Monthly | I2: Annual
A3: Storage | B3: 5 | C3: 6 | D3: =B3*C3 -> 30 | E3: 2 | F3: =D3*E3 -> 60 | H3: =E3*G3 -> 0 | I3: =H3*12 -> 0
A4: Storage | B4: 4 | C4: 6 | D4: =B4*C4 -> 24 | E4: 6 | F4: =D4*E4 -> 144 | H4: =E4*G4 -> 0 | I4: =H4*12 -> 0
A5: Storage | B5: 10 | C5: 14 | D5: 140 | E5: 11 | F5: 1540 | H5: 0 | I5: 0
A6: Storage | B6: 10 | C6: 20 | D6: 200 | E6: 38 | F6: 7600 | H6: 0 | I6: 0
A8: Office Total | E8: =SUM(E3:E6) -> 57 | F8: =SUM(F3:F6) -> 9344 | H8: =SUM(H3:H6) -> 0 | I8: =SUM(I3:I6) -> 0
A9: Grand Total | E9: =SUM(E3:E6) -> 57 | F9: =SUM(F3:F6) -> 9344 | H9: =SUM(H3:H6) -> 0 | I9: =SUM(I3:I6) -> 0

Sheet Rate Survey
A2: Isaacs Mini Storage
A3: 1745 E Isaacs Avenue, Walla Walla, WA 99362
A4: Unit Size | D4: Type | H4: Website Rate | I4: PSF | J4: On-Site Rate | K4: PSF
A5: ELITE STORAGE | D5: 417 Wellington Ave | E5: Walla Walla | F5: WA | G5: 0.0934
A6: 5 | B6: x | C6: 10 | D6: Drive Up | H6: 40 | I6: 0.8 | J6: 80 | K6: 1.6
A7: 10 | B7: x | C7: 10 | D7: Drive Up | H7: 53 | I7: 0.53 | J7: 105 | K7: 1.05
A8: 10 | B8: x | C8: 15 | D8: Drive Up | J8: 114 | K8: 0.76
A9: 10 | B9: x | C9: 20 | D9: Drive Up | J9: 190 | K9: 0.95
A10: 10 | B10: x | C10: 25 | D10: Drive Up | J10: 294 | K10: 1.176
A11: 10 | B11: x | C11: 30 | D11: Drive Up | H11: 175 | I11: 0.5833333333 | J11: 350 | K11: 1.166666667
A13: Storage Quest Self Storage | D13: 2340 Melrose St | E13: Walla Walla | F13: WA | G13: 0.4859
A14: 8 | B14: x | C14: 10 | D14: Drive Up | H14: 31 | I14: 0.3875 | J14: 62 | K14: 0.775
A15: 10 | B15: x | C15: 10 | D15: Drive Up | H15: 40 | I15: 0.4 | J15: 79 | K15: 0.79
A16: 10 | B16: x | C16: 15 | D16: Drive Up | H16: 45 | I16: 0.3 | J16: 89 | K16: 0.5933333333
A17: 10 | B17: x | C17: 20 | D17: Drive Up | H17: 60 | I17: 0.3 | J17: 119 | K17: 0.595
A18: 10 | B18: x | C18: 30 | D18: Drive Up | H18: 112 | I18: 0.3733333333 | J18: 224 | K18: 0.7466666667
A20: Eastside Mini-Storage | D20: 2281 E Isaacs Ave | E20: Walla Walla | F20: WA | G20: 0.6757
A21: 5 | B21: x | C21: 10 | D21: Drive Up | H21: 27 | I21: 0.54 | J21: 54 | K21: 1.08
A22: 10 | B22: x | C22: 10 | D22: Drive Up | H22: 60 | I22: 0.6 | J22: 119 | K22: 1.19
A23: 10 | B23: x | C23: 20 | D23: Drive Up | J23: 157 | K23: 0.785
A25: Storelocal Storage | D25: 2548 E Isaacs Ave | E25: Walla Walla | F25: WA | G25: 0.8227
A26: 5 | B26: x | C26: 10 | D26: Drive Up | H26: 18.5 | I26: 0.37 | J26: 37 | K26: 0.74
A27: 10 | B27: x | C27: 10 | D27: Drive Up | H27: 29.5 | I27: 0.295 | J27: 59 | K27: 0.59
A28: 10 | B28: x | C28: 15 | D28: Drive Up | H28: 44 | I28: 0.2933333333 | J28: 88 | K28: 0.5866666667
A29: 10 | B29: x | C29: 20 | D29: Drive Up | H29: 52.5 | I29: 0.2625 | J29: 105 | K29: 0.525
A30: 10 | B30: x | C30: 30 | D30: Drive Up | H30: 114.5 | I30: 0.3816666667 | J30: 229 | K30: 0.7633333333
A31: 10 | B31: x | C31: 40 | D31: Drive Up | H31: 262.5 | I31: 0.65625 | J31: 525 | K31: 1.3125
A32: 0 | D32: 0 | E32: 0 | F32: 0 | G32: 0
B33: x
B34: x
B35: x
B36: x
B37: x
B38: x
B39: x
B40: x
B41: x
B42: x
A44: 0 | D44: 0 | E44: 0 | F44: 0 | G44: 0
B45: x
B46: x
B47: x
B48: x
B49: x
B50: x
B51: x
B52: x
B53: x
B54: x
A56: 0 | D56: 0 | E56: 0 | F56: 0 | G56: 0
B57: x
B58: x
B59: x
B60: x
B61: x
B62: x
B63: x
B64: x
B65: x
B66: x
A68: 0 | D68: 0 | E68: 0 | F68: 0 | G68: 0
B69: x
B70: x
B71: x
B72: x
B73: x
B74: x
B75: x
B76: x
B77: x
B78: x
A80: 0 | D80: 0 | E80: 0 | F80: 0 | G80: 0
B81: x
B82: x
B83: x
B84: x
B85: x
B86: x
B87: x
B88: x
B89: x
B90: x
A92: 0 | D92: 0 | E92: 0 | F92: 0 | G92: 0
B93: x
B94: x
B95: x
B96: x
B97: x
B98: x
B99: x
B100: x
B101: x
B102: x
A104: Isaacs Mini Storage | D104: 1745 E Isaacs Avenue, Walla Walla, WA 99362
A105: 10 | B105: x | C105: 14 | D105: Drive Up | J105: 160 | K105: 1.142857143
A106: 10 | B106: x | C106: 20 | D106: Drive Up | J106: 175 | K106: 0.875

Sheet P&L
A3: 2025 OPERATING EXPENSES | B3: Annual | D3: Monthly
A4: Real Estate Taxes | B4: 4179.43 | D4: =$B4/12 -> 348.2858333
A5: Property Insurance | B5: 1896.51 | D5: =$B5/12 -> 158.0425
A6: Management | B6: 0 | D6: 0
A7: Maintenance | B7: 2080 | D7: =$B7/12 -> 173.3333333
A8: Advertising | B8: 0 | D8: 0
A9: Credit Card Processing | B9: 164.1 | D9: 13.675
A10: Internet | B10: 719.4 | D10: 59.95
A11: Electricity | B11: 516 | D11: 43
A12: Website & Software | B12: 2174.32 | D12: 181.1933333
A13: Phone | B13: 144 | D13: 12
A14: Security Cameras | B14: 108.9 | D14: 9.075
A15: Office Supplies / PO BOX | B15: =136+332 -> 468 | D15: 39
A16: City Utilities (Storm Water, Ambulance, Etc.) | B16: 2091.2 | D16: 174.2666667
A17: Totals: | B17: =SUM(B4:B16) -> 14541.86

Sheet Rent Roll
A1: RENT ROLL AS OF 09.01.2025
A4: VACANT UNITS | D4: MARKET RATE ASSUMPTIONS | G4: NOTES / RENT INCREASE HISTORY
A5: 10x20 = | B5: 11 | D5: PSF Standard Rate @ | E5: 0.94 | G5: *Rental Rates Pre-2021 were $45/month for 10x20 Units, and $40/month for 10x14 Units. 100% Occupied
A6: 10x14 = | B6: 3 | D6: 10'x20' = | E6: =200*$E$5 -> 188 | G6: *In August 2022, Owner raised rents to $175/month for 10x20 Units, and $160 for 10x14 Units.
A7: 5x6 = | B7: 2 | D7: 10'x14' = | E7: =140*$E$5 -> 131.6 | G7: *Vacant units remodeled in 2024/2025
A8: 4x6 = | B8: 3 | D8: 5'x6' = | E8: =60*$E$5 -> 56.4
D9: 4'x6' = | E9: =24*$E$5 -> 22.56
A11: Unit | B11: Unit Type | C11: Customer | D11: Move-in Date | E11: Standard Rate @ Move-in | F11: Variance from Move-in Rate | G11: Current Rent | H11: Anticipated Market Rate | I11: Notes/History
A12: 1 | B12: 10 x 20 | C12: Hunter Swopes | D12: 2025-09-01 | E12: 130 | F12: =G12-E12 -> 0 | G12: 130 | H12: =$E$6 -> 188 | I12: 50% off first 2 months
A13: 1A | B13: 10 x 14 | C13: James Pedersen | D13: 2022-09-01 | E13: 160 | F13: =$G13-$E13 -> -10 | G13: 150 | H13: =$E$7 -> 131.6 | I13: Discounted Rent from $160 in March 2023
A14: 2 | B14: 10 x 20 | C14: William Jordan | D14: Pre-2021 | E14: 160 | F14: =$G14-$E14 -> -30 | G14: 130 | H14: =$E$6 -> 188 | I14: Discounted Rent from $160 in June 2023. Long Term Tenant
A15: 2A | B15: 10 x 14 | C15: Tim Durst | D15: Pre-2021 | E15: 160 | F15: -30 | G15: 130 | H15: =$E$7 -> 131.6 | I15: Discounted Rent from $160 in April 2023. Long Term Tenant
A16: 3 | B16: 10 x 20 | C16: VACANT - NEED TO UPDATE | D16: VACANT | E16: 130 | F16: -130 | G16: 0 | H16: =$E$6 -> 188
A17: 3A | B17: 10 x 14 | C17: Shannon McClellan | D17: 2023-03-21 | E17: 145 | F17: 0 | G17: 145 | H17: =$E$7 -> 131.6
A18: 4 | B18: 10 x 20 | C18: Mona J Seifert | D18: 2022-03-01 | E18: 160 | F18: -50 | G18: 110 | H18: =$E$6 -> 188 | I18: Friend of a friend discount
A19: 4A | B19: 10 x 14 | C19: VACANT - NEED TO UPDATE | D19: VACANT | E19: 132 | F19: -132 | G19: 0 | H19: =$E$7 -> 131.6
A20: 5 | B20: 10 x 20 | C20: Isaacs Mini Storage Tools | D20: 2024-10-01 | E20: 125 | F20: 0 | G20: 125 | H20: =$E$6 -> 188 | I20: Owner's Unit - Tools etc
A21: 5A | B21: 10 x 14 | C21: Tim Durst | D21: 2025-03-01 | E21: 130 | F21: -65 | G21: 65 | H21: =$E$7 -> 131.6 | I21: Multi Unit Discount + Long Term Tenant
A22: 6 | B22: 10 x 20 | C22: VACANT - NEED TO UPDATE | D22: VACANT | E22: 130 | F22: -130 | G22: 0 | H22: =$E$6 -> 188
A23: 6A | B23: 10 x 14 | C23: VACANT - UPDATED/REMODELED 2025 | D23: VACANT | E23: 132 | F23: -132 | G23: 0 | H23: =$E$7 -> 131.6
A24: 7 | B24: 10 x 20 | C24: Mike & Dawn Leistiko | D24: Pre-2021 | E24: 175 | F24: -50 | G24: 125 | H24: =$E$6 -> 188 | I24: Discounted rate from $175 in June 2025. Long Term Tenant.
A25: 7A | B25: 10 x 14 | C25: Cesar Zuniga | D25: 2025-03-17 | E25: 135 | F25: -50 | G25: 85 | H25: =$E$7 -> 131.6 | I25: Friend discount
A26: 8 | B26: 10 x 20 | C26: Briston Stone | D26: Pre-2021 | E26: 175 | F26: -17.5 | G26: 157.5 | H26: =$E$6 -> 188 | I26: Multi Unit Discount + Long Term Tenant
A27: 8A | B27: 10 x 14 | C27: Jeff Callow | D27: Pre-2021 | E27: 160 | F27: 0 | G27: 160 | H27: =$E$7 -> 131.6 | I27: Long Term Tenant
A28: 9 | B28: 10 x 20 | C28: VACANT - UPDATED/REMODELED 2025 | D28: VACANT | E28: 130 | F28: -130 | G28: 0 | H28: =$E$6 -> 188
A29: 9A | B29: 10 x 14 | C29: VACANT - UPDATED/REMODELED 2025 | D29: VACANT | E29: 132 | F29: -132 | G29: 0 | H29: =$E$7 -> 131.6
A30: 10 | B30: 10 x 20 | C30: VACANT - UPDATED/REMODELED 2025 | D30: VACANT | E30: 130 | F30: -130 | G30: 0 | H30: =$E$6 -> 188
A31: 10A | B31: 10 x 14 | C31: Michael Thomas | D31: 2022-08-01 | E31: 135 | F31: -20 | G31: 115 | H31: =$E$7 -> 131.6 | I31: Owner's Unit (Kept vacant in case needing to pull electricity for exit gate)
A32: 11 | B32: 10 x 20 | C32: VACANT - UPDATED/REMODELED 2025 | D32: VACANT | E32: 130 | F32: -130 | G32: 0 | H32: =$E$6 -> 188
A33: 12 | B33: 5 x 6 | C33: VACANT - NEVER MARKETED | D33: VACANT | E33: 20 | F33: -20 | G33: 0 | H33: =$E$8 -> 56.4
A34: 13 | B34: 5 x 6 | C34: VACANT - NEVER MARKETED | D34: VACANT | E34: 20 | F34: -20 | G34: 0 | H34: =$E$8 -> 56.4
A35: 14 | B35: 6 x 4 | C35: Judi Robinson | D35: Pre-2021 | E35: 15 | F35: 0 | G35: 15 | H35: =$E$9 -> 22.56 | I35: Long Term Tenant
A36: 15 | B36: 6 x 4 | C36: Julie Jones c/o Valley Residential | D36: Pre-2021 | E36: 15 | F36: 45 | G36: 60 | H36: =$E$9 -> 22.56 | I36: Long Term Tenant. Tenant moved from a 10x14' unit to save $
A37: 16 | B37: 6 x 4 | C37: Ron Romanik | D37: Pre-2021 | E37: 15 | F37: 5 | G37: 20 | H37: 22.56 | I37: Long Term Tenant
A38: 17 | B38: 10 x 20 | C38: VACANT - UPDATED/REMODELED 2025 | D38: VACANT | E38: 130 | F38: -130 | G38: 0 | H38: =$E$6 -> 188
A39: 18 | B39: 10 x 20 | C39: VACANT - UPDATED/REMODELED 2025 | D39: VACANT | E39: 130 | F39: -130 | G39: 0 | H39: 188
A40: 19 | B40: 10 x 20 | C40: Bob Marker | D40: Pre-2021 | E40: 175 | F40: 0 | G40: 175 | H40: 188 | I40: Long Term Tenant (Out of State)
A41: 20 | B41: 10 x 20 | C41: Jeff Wilcox | D41: Pre-2021 | E41: 150 | F41: -25 | G41: 125 | H41: 188 | I41: Discounted rate from $150 in October 2024. Multi Unit Discount + Long Term Tenant
A42: 21 | B42: 10 x 20 | C42: Steve Lenz | D42: 2023-05-25 | E42: 160 | F42: 0 | G42: 160 | H42: 188
A43: 22 | B43: 10 x 20 | C43: Melvin Douglas | D43: Pre-2021 | E43: 157 | F43: -22 | G43: 135 | H43: 188 | I43: Discounted rate from $157 in August 2022. Multi Unit Discount + Long Term Tenant
A44: 23 | B44: 10 x 20 | C44: Dan & Becky Thomas | D44: 2025-04-01 | E44: 125 | F44: 0 | G44: 125 | H44: 188 | I44: Family. Annual Lease
A45: 24 | B45: 10 x 20 | C45: Patricia Johnson | D45: 2024-07-08 | E45: 125 | F45: -25 | G45: 100 | H45: 188 | I45: Family Friend Discount
A46: 25 | B46: 10 x 20 | C46: Darran Maestretti | D46: Pre-2021 | E46: 155 | F46: -20 | G46: 135 | H46: 188 | I46: Discounted rate from $155 in August 2022. Annual Lease. Long Term Tenant
A47: 26 | B47: 10 x 20 | C47: Jeff Wilcox | D47: Pre-2021 | E47: 150 | F47: -25 | G47: 125 | H47: 188 | I47: Discounted rate from $150 in October 2024. Multi Unit Discount + Long Term Tenant
A48: 27 | B48: 10 x 20 | C48: VACANT - UPDATED/REMODELED 2025 | D48: VACANT | E48: 130 | F48: -130 | G48: 0 | H48: 188
A49: 28 | B49: 10 x 20 | C49: VACANT - UPDATED/REMODELED 2025 | D49: VACANT | E49: 130 | F49: -130 | G49: 0 | H49: 188
A50: 29 | B50: 10 x 14 | C50: Sheryl Balough | D50: Pre-2021 | E50: 145 | F50: -15 | G50: 130 | H50: =$E$7 -> 131.6 | I50: Discounted rate from $145 in April 2024. Long Term Tenant
A51: 30 | B51: 10 x 20 | C51: Michael Thomas | D51: 2022-05-01 | E51: 125 | F51: 0 | G51: 125 | H51: =$E$6 -> 188 | I51: Owners Unit
A52: 31 | B52: 10 x 20 | C52: Gregory S Fink | D52: Pre-2021 | E52: 80 | F52: 0 | G52: 80 | H52: 188 | I52: Long Term Tenant. Raised rent from $45/month to $80/month in August 2024
A53: 32 | B53: 10 x 20 | C53: VACANT - UPDATED/REMODELED 2025 | D53: VACANT | E53: 130 | F53: -130 | G53: 0 | H53: 188
A54: 33 | B54: 10 x 20 | C54: Bryan Winn | D54: Pre-2021 | E54: 145 | F54: 0 | G54: 145 | H54: 188 | I54: Long Term Tenant
A55: 34 | B55: 10 x 20 | C55: Nick Scrivner | D55: 2024-02-01 | E55: 110 | F55: 0 | G55: 110 | H55: 188 | I55: Family Friend Discount. Pays Annually.
A56: 35 | B56: 10 x 20 | C56: Kristina Douglas PR | D56: Pre-2021 | E56: 157 | F56: -22 | G56: 135 | H56: 188 | I56: Discounted rate from $157 in March 2025
A57: 36 | B57: 10 x 20 | C57: Briston Stone | D57: Pre-2021 | E57: 157.5 | F57: 0 | G57: 157.5 | H57: 188 | I57: Multi Unit Discount + Long Term Tenant
A58: 37 | B58: 10 x 20 | C58: Jeff Wilcox | D58: Pre-2021 | E58: 150 | F58: -25 | G58: 125 | H58: 188 | I58: Discounted rate from $150 in October 2024. Multi Unit Discount + Long Term Tenant
A59: 38 | B59: 10 x 20 | C59: Craig French | D59: 2024-12-08 | E59: 160 | F59: -60 | G59: 100 | H59: 188 | I59: Multi Unit Discount on Unit 38 Only.
A60: 39 | B60: 10 x 20 | C60: Dan & Becky Thomas | D60: 2025-08-26 | E60: 125 | F60: 0 | G60: 125 | H60: 188 | I60: Family. Annual Lease
A61: 40 | B61: 10 x 20 | C61: Amber Leavitt | D61: 2024-09-01 | E61: 135 | F61: 0 | G61: 135 | H61: 188
A62: 41 | B62: 10 x 20 | C62: Melvin Douglas | D62: Pre-2021 | E62: 157 | F62: -22 | G62: 135 | H62: 188 | I62: Discounted rate from $157 in August 2022. Multi Unit Discount + Long Term Tenant
A63: 42 | B63: 10 x 20 | C63: VACANT - UPDATED/REMODELED 2025 | D63: VACANT | E63: 130 | F63: -130 | G63: 0 | H63: 188
A64: 43 | B64: 10 x 20 | C64: Craig French | D64: 2023-05-01 | E64: 160 | F64: 0 | G64: 160 | H64: 188
A65: 44 | B65: 10 x 20 | C65: Nelson "Billy" Zuniga | D65: 2025-03-01 | E65: 125 | F65: 0 | G65: 125 | H65: 188 | I65: Gas Station Tenant - Discount. Free Unit in return for closing gates
A66: 45 | B66: 6 x 4 | C66: VACANT - NEVER MARKETED | D66: VACANT | E66: 15 | F66: -15 | G66: 0 | H66: =$E$9 -> 22.56 | I66: Never Marketed
A67: 46 | B67: 6 x 4 | C67: VACANT - NEVER MARKETED | D67: VACANT | E67: 15 | F67: -15 | G67: 0 | H67: 22.56 | I67: Never Marketed
A68: 47 | B68: 6 x 4 | C68: VACANT - NEVER MARKETED | D68: VACANT | E68: 15 | F68: -15 | G68: 0 | H68: 22.56 | I68: Never Marketed
E70: Total Current Rents: | G70: =SUM(G12:G68) -> 4590
E72: Total Market Rents: | H72: =SUM(H12:H68) -> 8839.76
